{"text_format":"2","workbook":"xlsx","n_sheets":2,"sheets":["Összesítő","Erősáram"],"not_rendered":{"charts":0,"images":0,"macros":0,"external_links":0,"defined_names":0,"comments":0,"pivot_tables":0},"unopened":[],"bounds":{"document_bytes":16777216,"sheet_cells":100000,"run_cost":"one","rows_first":2000,"rows_last":500,"rows_between":2000,"halvings":0,"cell_chars":16384,"cell_head_chars":4096},"cells_cut":0,"cells_raw":0,"read":"whole","date_system":"1900"}

{"sheet":"Összesítő","index":0,"n_rows":11,"n_cols":5,"rows_kept":11,"cut":false,"hidden":false,"merged":[]}
[]
[null,null,null,"ÖSSZESÍTŐ"]
[]
[null,null,"Dóm tér 10 alagsor műhely elektromos szerelés"]
[]
[]
[]
[null,null,"Anyag","Díj","Összesen"]
[]
[]
[null,"Erősáram",{"$f":"Erősáram!G47","v":0},{"$f":"Erősáram!H47","v":0},{"$f":"C11+D11","v":0}]

{"sheet":"Erősáram","index":1,"n_rows":50,"n_cols":8,"rows_kept":50,"cut":false,"hidden":false,"merged":[[49,6,49,7]]}
[]
[null,null,null,"               KÖLTSÉGVETÉS"]
[]
[null,null,"Dóm tér 10 alagsor műhely elektromos szerelés"]
[]
[]
[]
[]
["S.sz","Megnevezés","Menny.","Me","Anyag","Díj","Anyag Ö","Díj Ö"]
[]
[null,null,"Bontási munkák"]
[null,null,"/Műhely, raktár/"]
[]
[1,"Dugalj tábla bontása 3 f. dugaljakkal",2,"klt",0,0,{"$f":"C14*E14","v":0},{"$f":"C14*F14","v":0}]
[2,"Dugalj tábla bontása 1 f. dugaljakkal",2,"klt",0,0,{"$f":"C15*E15","v":0},{"$f":"C15*F15","v":0}]
[3,"Dugalj bontása, 16 A 1.f.",12,"db",0,0,0,0]
[4,"Olvadó betétes biztosító tábla bontása",1,"db",0,0]
[5,"Oldalfali lámpatestek bontása",4,"db",0,0,{"$f":"C18*E18","v":0},{"$f":"C18*F18","v":0}]
[6,"Mennyezeti lámpatest bontása",6,"db",0,0,0,0]
[7,"Meglévő falonkívüli és süllyesztett vezetések védőcsövek bontása",1,"klt",0,0,{"$f":"C20*E20","v":0},{"$f":"C20*F20","v":0}]
[]
[]
[null,null,"Új szerelés"]
[null,null,"/Műhely, raktár/"]
[1,"DLP csatorna elhelyezése 60X40 mm",42,"m",0,0,{"$f":"C25*E25","v":0},{"$f":"C25*F25","v":0}]
[2,"DLP csatorna elhelyezése 105X50 mm",16,"m",0,0,0,0]
[3,"NYY-J 5x35 mm2 kábel, kábelcsatornában ill. álmennyezet fölött szerelve",15,"m",0,0,{"$f":"C27*E27","v":0},{"$f":"C27*F27","v":0}]
[{"$f":"A27+1","v":4},"NYM 5x10 mm2 kiskábel, kábelcsatornában szerelve",25,"m",0,0,0,0]
[{"$f":"A28+1","v":5},"NYM 5x2,5mm2 kiskábel, Kábelcsatornában szerelve ",25,"m",0,0,0,0]
[6,"NYM 3x2,5mm2 kiskábel, kábelcsatornában szerelve",110,"m",0,0,0,0]
[7,"Mcu 1,5 mm2 vezeték kábelcsatornában szerelve",60,"m",0,0,0,0]
[8,"Cat 5a informatikai kábel védőcsőbe szerelve",20,"m",0,0,0,0]
[9,"2+F fehér dugalj süllyesztve szerelve",30,"db",0,0,0,0]
[10,"Ipari csatlakozó 5 pólusú 16 A-es, falon kívül szerelve",1,"db",0,0,0,0]
[11,"Ipari csatlakozó 4 pólusú 32 A-es, falon kívül szerelve",2,"db",0,0,0,0]
[12,"2RJ 45 informatikai csatlakozó, süllyesztve",2,"db",0,0,0,0]
[13,"Kapcsoló 2 áramkörös fehér színben, süllyesztve",1,"db",0,0,0,0]
[14,"Kapcsoló 1 sarkú, fehér színben, süllyesztve",2,"db",0,0,0,0]
[15,"Daniella deLux tükrös rácsos, 4x18 W LED",4,"db",0,0,0,0]
[16,"CLEARED CL40205 ALU, LED panel 20 W fehér 1800 lumen 4000 K",3,"db",0,0,0,0]
[17,"Meglévő folyosói elosztóban leégazás kialakítása műhely elosztó részére",1,"klt",0,0,0,0]
[18,"Új műhely  elosztó  beleépítve: a műhely 3 és 1 fázisú dugaljainak áramkörei, laágazásai áramvédő kapcsolókkal, világítási áramkörök leágazásaival",1,"db",0,0,0,0]
[19,"A megvalósításhoz szükséges munkák a helyszíni bejáráson tapasztaltak szerint",1,"klt",0,0,0,0]
[20,"Érintésvédelmi mérés jegyzőkönyv készítéssel",1,"klt",0,0,0,0]
[21,"Megvalósulási zerv készítése",1,"klt",0,0,0,0]
[]
[null,"ÖSSZESEN:",{"$nulls":4},{"$f":"SUM(G14:G45)","v":0},{"$f":"SUM(H14:H45)","v":0}]
[]
[]
[{"$nulls":6},{"$f":"G47+H47","v":0}]